[Event "IND-ch Women 2019"]
[Site "Karaikkudi"]
[Date "2019.07.19"]
[Round "1.15"]
[White "Bindu, Saritha K."]
[Black "Swati Ghate"]
[Result "1-0"]
[ECO "D02"]
[WhiteElo "1538"]
[BlackElo "2192"]
[Annotator "ChessBase"]
[PlyCount "81"]
[EventDate "2019.07.19"]
[EventType "swiss"]
[EventCountry "IND"]
[SourceTitle "playchess.com"]
[Source "ChessBase"]
[SourceQuality "1"]
[TimeControl "40/5400+30:1800+30"]

1. d4 {[%emt 1:30:30]} Nf6 {[%emt 1:30:30]} 2. Bf4 {[%emt 0:00:30]} d5 {[%emt 0:00:30]} 3. e3 {[%emt 0:00:30]} c5 {[%emt 0:00:30]} 4. c3 {[%emt 0:00:30]} Nc6 {[%emt 0:00:30]} 5. Bd3 {[%emt 0:00:30]} e6 {[%emt 0:00:30]} 6. Nd2 {[%emt 0:00:30]} Be7 {[%emt 0:00:30]} 7. h3 {[%emt 0:00:30]} O-O {[%emt 0:00:30]} 8. Ngf3 {[%emt 0:00:30]} Nh5 {[%emt 0:00:30]} 9. Bh2 {[%emt 0:00:30]} g6 {[%emt 0:00:30]} 10. O-O {[%emt 0:00:00]} Bd6 {[%emt 0:00:00]} 11. Ne5 {[%emt 0:00:00]} Qc7 {[%emt 0:00:00]} 12. f4 {[%emt 0:00:00]} f6 {[%emt 0:00:00]} 13. Nxc6 {[%emt 0:00:00]} bxc6 {[%emt 0:00:00]} 14. g4 {[%emt 0:00:00]} Ng7 {[%emt 0:00:00]} 15. Qe2 {[%emt 0:00:00]} c4 {[%emt 0:00:00]} 16. Bc2 {[%emt 0:00:00]} c5 {[%emt 0:00:00]} 17. Nf3 {[%emt 0:00:00]} Rb8 {[%emt 0:00:00]} 18. b3 {[%emt 0:00:00]} Ba6 {[%emt 0:00:00]} 19. dxc5 {[%emt 0:00:00]} Qxc5 {[%emt 0:00:00]} 20. b4 {[%emt 0:00:00]} Qc7 {[%emt 0:00:00]} 21. Qd2 {[%emt 0:00:00]} Bb7 {[%emt 0:00:00]} 22. Rae1 {[%emt 0:00:00]} Rbd8 {[%emt 0:00:00]} 23. Qd4 {[%emt 0:00:00]} e5 {[%emt 0:00:00]} 24. Qd2 {[%emt 0:00:00]} Rde8 {[%emt 0:00:00]} 25. fxe5 {[%emt 0:00:00]} fxe5 {[%emt 0:00:00]} 26. a3 {[%emt 0:00:00]} d4 {[%emt 0:00:00]} 27. e4 {[%emt 0:00:00]} d3 {[%emt 0:00:00]} 28. Ba4 {[%emt 0:00:00]} Re6 {[%emt 0:00:00]} 29. Qe3 {[%emt 0:00:00]} Qb8 {[%emt 0:01:18]} 30. Bb5 {[%emt 0:00:18]} Bc7 {[%emt 0:01:27]} 31. Kg2 {[%emt 0:01:25]} Ba6 {[%emt 0:01:32]} 32. Bxa6 {[%emt 0:02:07]} Rxa6 {[%emt 0:00:03]} 33. Qc5 {[%emt 0:00:21]} Qb6 {[%emt 0:03:18]} 34. Qxc4+ {[%emt 0:00:26]} Qe6 {[%emt 0:00:06]} 35. Qxc7 {[%emt 0:02:17]} Rxa3 {[%emt 0:00:11]} 36. Qxe5 {[%emt 0:01:58]} Ra2+ {[%emt 0:00:29]} 37. Rf2 {[%emt 0:01:25]} Qf7 {[%emt 0:01:30]} 38. Qd5 {[%emt 0:00:55]} Rxf2+ {[%emt 0:00:46]} 39. Kxf2 {[%emt 0:00:12]} Ne6 {[%emt 0:00:03]} 40. Qxd3 {[%emt 0:00:00]} Ng5 {[%emt 0:00:00]} 41. Re3 {[%emt 0:03:07]} 1-0

[Event "IND-ch Women 2019"]
[Site "Karaikkudi"]
[Date "2019.07.19"]
[Round "1.16"]
[White "Sharma Isha"]
[Black "Arunika Ghosh"]
[Result "1-0"]
[ECO "B40"]
[WhiteElo "2188"]
[BlackElo "1531"]
[Annotator "NA"]
[PlyCount "131"]
[EventDate "2019.07.19"]
[EventType "swiss"]
[EventCountry "IND"]
[SourceTitle "playchess.com"]
[Source "ChessBase"]
[SourceQuality "1"]
[TimeControl "40/5400+30:1800+30"]

1. e4 {[%emt 0:00:00]} c5 {[%emt 0:00:00]} 2. Nf3 {[%emt 0:00:00]} e6 {[%emt 0:00:25]} 3. g3 {[%emt 0:00:00]} a6 {[%emt 0:01:00]} (3... d5 4. exd5 exd5 5. d4 Nf6 6. Bg2 Be7 7. O-O O-O 8. dxc5 Bxc5 9. Nc3 Nc6 10. a3 Re8 11. b4 Bb6 12. Bg5 d4 13. Bxf6 Qxf6 14. Nd5 Qd8 15. Nd2 Be6 16. Nf4 Bf5 17. Nd3 Qc7 {1-0 (33) Zvjaginsev,V (2642)-Rublevsky,S (2652) Tula 2019}) 4. Bg2 {[%emt 0:01:24]} b5 {[%emt 0:01:08]} 5. O-O {[%emt 0:00:10]} Bb7 {[%emt 0:00:27]} 6. d3 {[%emt 0:00:38] B40: Sicilian: 2...e6, Unusual lines} d6 {[%emt 0:00:42]} 7. Re1 {[%emt 0:00:09]} Nd7 {[%emt 0:02:54]} 8. Nbd2 {[%emt 0:00:30]} Ngf6 {[%emt 0:02:04]} 9. Nf1 {[%emt 0:00:27]} Be7 {[%emt 0:01:28]} 10. h3 $146 {[%emt 0:00:48]} ({Predecessor:} 10. Nh4 O-O 11. e5 {0-1 (31) Dors,R (2167)-Brzezinski,M (2144) Jastrzebia Gora 2016}) 10... Qc7 {[%emt 0:01:11]} 11. g4 {[%emt 0:01:07]} Nb6 {[%emt 0:03:22]} 12. Ng3 {[%emt 0:00:36]} c4 {[%emt 0:06:28]} 13. d4 {[%emt 0:00:36]} d5 {[%emt 0:01:36]} 14. e5 {[%emt 0:00:26]} Nfd7 {[%emt 0:00:22]} 15. c3 {[%emt 0:01:01]} Nb8 {[%emt 0:02:14]} 16. h4 {[%emt 0:00:44]} Nc6 {[%emt 0:00:49]} 17. Nh5 {[%emt 0:02:28]} O-O-O {[%emt 0:02:35]} 18. g5 {[%emt 0:03:54]} Rdg8 {[%emt 0:02:24]} 19. Bh3 {[%emt 0:01:30]} Kb8 {[%emt 0:02:37]} 20. Nf4 {[%emt 0:03:04]} g6 {[%emt 0:02:42]} 21. Ng2 {[%emt 0:04:47]} Bf8 {[%emt 0:02:59]} 22. Nh2 {[%emt 0:02:10]} h5 {[%emt 0:05:37]} 23. gxh6 {[%emt 0:05:32]} Bxh6 {[%emt 0:00:36]} 24. Bxh6 {[%emt 0:00:33]} Rxh6 {[%emt 0:00:25]} 25. Ng4 {[%emt 1:09:56]} Rhh8 {[%emt 0:00:44]} 26. Nf6 {[%emt 0:00:00]} Rf8 {[%emt 0:00:50]} 27. Qg4 {[%emt 0:00:00]} Ne7 {[%emt 0:02:15]} 28. Qg5 {[%emt 0:00:00]} Nd7 {[%emt 0:03:21]} 29. f3 {[%emt 0:00:00]} Nxf6 {[%emt 0:02:37]} 30. Qxf6 {[%emt 0:00:00]} Nc8 {[%emt 0:02:34]} 31. Kf2 {[%emt 0:00:00]} Qd8 {[%emt 0:02:44]} 32. Qxd8 {[%emt 0:00:00]} Rxd8 {[%emt 0:00:17]} 33. Kg3 {[%emt 0:00:00]} Rdg8 {[%emt 0:02:35]} 34. f4 {[%emt 0:00:00]} Nb6 {[%emt 0:00:34]} 35. Ne3 {[%emt 0:00:00]} Rh7 {[%emt 0:00:56]} 36. Bg2 {[%emt 0:00:00]} Na4 {[%emt 0:00:57]} 37. Re2 {[%emt 0:00:00]} Rc8 {[%emt 0:01:52]} 38. Ng4 {[%emt 0:00:00]} a5 {[%emt 0:04:10]} 39. a3 {[%emt 0:00:00]} Nb6 {[%emt 0:01:54]} 40. Bf3 {[%emt 0:00:00]} Kc7 {[%emt 0:00:00]} 41. Nf6 {[%emt 0:00:00]} Rhh8 {[%emt 0:02:45]} 42. Rh2 {[%emt 0:00:00]} Kd8 {[%emt 0:02:26]} 43. h5 {[%emt 0:00:00]} gxh5 {[%emt 0:01:07]} 44. Rxh5 {[%emt 0:00:00]} (44. Rah1 $142) 44... Rxh5 {[%emt 0:01:27]} 45. Bxh5 {[%emt 0:00:00]} Ke7 {[%emt 0:00:16]} 46. Kf3 {[%emt 0:00:00]} Rh8 {[%emt 0:02:28]} 47. Rg1 {[%emt 0:00:00]} Kf8 $1 {[%emt 0:02:01]} 48. Ke3 {[%emt 0:00:00]} Bc6 {[%emt 0:00:58]} 49. Bf3 {[%emt 0:00:00]} a4 {[%emt 0:01:14]} 50. f5 {[%emt 0:00:00]} Nc8 {[%emt 0:03:38]} 51. Bg4 {[%emt 0:00:00]} Ke7 {[%emt 0:06:41]} 52. Rg3 {[%emt 0:00:00]} Rh2 {[%emt 0:08:47]} (52... exf5 $16 53. Bxf5 Nb6) 53. fxe6 {[%emt 0:00:00]} fxe6 {[%emt 0:01:10] [#]} 54. Be2 {[%emt 0:00:00]} (54. Ng8+ $1 $16 Kd8 55. Bxe6) 54... Rh8 {[%emt 0:11:19]} 55. Rg7+ {[%emt 0:00:00]} Kf8 {[%emt 0:00:26]} 56. Rc7 {[%emt 0:00:00]} Ne7 {[%emt 0:00:18]} 57. Bh5 {[%emt 0:00:00]} Rxh5 {[%emt 0:07:46]} 58. Nxh5 {[%emt 0:00:00]} Kf7 {[%emt 0:00:06]} 59. Kf4 {[%emt 0:00:00]} Kf8 $18 {[%emt 0:01:43]} 60. Kg5 {[%emt 0:00:00]} Kf7 {[%emt 0:00:36]} 61. Nf4 {[%emt 0:00:00]} Be8 {[%emt 0:00:28]} 62. Ng6 {[%emt 0:00:00]} Kg8 {[%emt 0:00:30]} 63. Rxe7 {[%emt 0:00:00]} Bxg6 {[%emt 0:00:11]} 64. Kxg6 {[%emt 0:00:00]} Kf8 {[%emt 0:00:08]} 65. Rxe6 {[%emt 0:00:00]} Kg8 {[%emt 0:00:09]} 66. Re8# {[%emt 0:00:00]} 1-0

[Event "IND-ch Women 2019"]
[Site "Karaikkudi"]
[Date "2019.07.19"]
[Round "1.17"]
[White "Ananya Arumbakkam"]
[Black "Chitlange Sakshi"]
[Result "1-0"]
[ECO "B15"]
[WhiteElo "1500"]
[BlackElo "2168"]
[Annotator "NA"]
[PlyCount "122"]
[EventDate "2019.07.19"]
[EventType "swiss"]
[EventCountry "IND"]
[SourceTitle "playchess.com"]
[Source "ChessBase"]
[SourceQuality "1"]
[TimeControl "40/5400+30:1800+30"]

1. e4 {[%emt 0:00:00]} c6 {[%emt 0:00:00]} 2. d4 {[%emt 0:00:00]} d5 {[%emt 0:00:00]} 3. Nc3 {[%emt 0:00:00]} dxe4 {[%emt 0:00:04]} 4. Nxe4 {[%emt 0:00:14]} Nf6 {[%emt 0:00:20]} 5. Nxf6+ {[%emt 0:00:37]} exf6 {[%emt 0:00:02]} 6. c3 {[%emt 0:01:12]} Bd6 {[%emt 0:00:25]} 7. Bd3 {[%emt 0:00:55]} O-O {[%emt 0:00:19]} 8. Ne2 {[%emt 0:01:58]} Re8 {[%emt 0:01:13]} 9. O-O {[%emt 0:00:25] B15: Caro-Kann: 3 Nc3: 3...g6 and 3...dxe4 4 Nxe4 Nf6 5 Nxf6+ exf6} (9. Qc2 h6 10. O-O Qc7 11. Ng3 Nd7 12. Be3 Nf8 13. Rae1 Be6 14. Qd2 Bxg3 15. hxg3 Bxa2 16. c4 b5 17. cxb5 Bd5 18. Rc1 {½-½ (31) Sjugirov,S (2663)-Li,C (2724) Qinhuangdao 2018}) 9... Qc7 {[%emt 0:01:01]} 10. Ng3 {[%emt 0:03:12]} Be6 {[%emt 0:02:31]} 11. f4 {[%emt 0:03:37]} Nd7 {[%emt 0:06:40]} 12. Qc2 $146 {[%emt 0:06:19]} ({Predecessor:} 12. c4 Nf8 13. Qf3 Rad8 14. b3 Qa5 15. Bb2 Ba3 16. Bc3 Bb4 17. Bxb4 Qxb4 {½-½ (58) Moshovakis,A (2050)-Theodoulidis,T (2063) Heraklion 2017}) 12... Nf8 {[%emt 0:01:49]} 13. Ne4 {[%emt 0:02:13]} c5 {[%emt 0:04:03]} 14. Nxd6 {[%emt 0:05:05]} Qxd6 {[%emt 0:00:01]} 15. dxc5 {[%emt 0:04:42]} Qxc5+ {[%emt 0:00:02]} 16. Qf2 {[%emt 0:01:44]} Qc7 {[%emt 0:03:49]} 17. Be3 {[%emt 0:02:16]} Bc4 {[%emt 0:03:35]} 18. Rfd1 {[%emt 0:04:08]} b6 {[%emt 0:01:44]} 19. Bxc4 {[%emt 0:03:43]} Qxc4 {[%emt 0:00:03]} 20. a4 {[%emt 0:01:20]} Re7 {[%emt 0:04:56]} 21. a5 {[%emt 0:07:47]} Rae8 {[%emt 0:02:37]} 22. axb6 {[%emt 0:03:26]} axb6 {[%emt 0:00:40]} 23. Re1 {[%emt 0:02:44]} b5 {[%emt 0:01:20]} 24. Rad1 {[%emt 0:02:44]} h6 {[%emt 0:06:20]} 25. Rd4 {[%emt 0:04:37]} Qc6 {[%emt 0:07:28]} 26. f5 {[%emt 0:02:45]} Re4 {[%emt 0:14:22]} (26... Nd7 $15) 27. Rxe4 {[%emt 0:02:19]} Rxe4 {[%emt 0:00:01]} 28. Bd4 {[%emt 0:03:54]} Nd7 {[%emt 0:00:28]} 29. Re3 {[%emt 0:01:41]} Qa8 {[%emt 0:02:07]} 30. Qf3 {[%emt 0:02:14]} Qa1+ {[%emt 0:04:05]} 31. Qf1 {[%emt 0:00:33]} Qxf1+ {[%emt 0:00:35]} 32. Kxf1 {[%emt 0:00:07]} Rf4+ {[%emt 0:00:03]} 33. Rf3 {[%emt 0:00:08]} Rxf3+ {[%emt 0:02:39]} 34. gxf3 {[%emt 0:00:07]} Kf8 {[%emt 0:00:02]} 35. b3 {[%emt 0:01:10]} Ke7 {[%emt 0:00:33]} 36. Ke2 {[%emt 0:00:15]} Kd6 {[%emt 0:00:28]} 37. h3 {[%emt 0:01:19]} Nb8 {[%emt 0:02:58]} 38. c4 {[%emt 0:01:39]} bxc4 {[%emt 0:00:46]} 39. bxc4 {[%emt 0:00:06]} Nc6 {[%emt 0:03:52]} 40. Bb2 {[%emt 0:00:00]} Kc5 {[%emt 0:00:00]} 41. Kd3 {[%emt 0:02:31]} Kb4 {[%emt 0:13:33]} 42. f4 {[%emt 0:00:44]} Ne7 {[%emt 0:06:06]} 43. Ke4 {[%emt 0:04:31]} Kb3 {[%emt 0:09:22]} 44. Bc1 {[%emt 0:00:11]} Kxc4 {[%emt 0:02:15]} 45. Ba3 $1 {[%emt 0:00:09]} Nd5 {[%emt 0:04:00]} 46. Bf8 {[%emt 0:00:57]} Nc3+ {[%emt 0:01:19]} 47. Kf3 {[%emt 0:00:33]} g6 {[%emt 0:01:04]} 48. Bxh6 {[%emt 0:00:51]} Kd3 {[%emt 0:01:24]} 49. Bg7 {[%emt 0:00:31]} Ne4 {[%emt 0:02:54]} 50. h4 {[%emt 0:00:13]} Kd4 $11 {[%emt 0:04:12]} 51. fxg6 {[%emt 0:01:40]} fxg6 {[%emt 0:00:06]} 52. f5 {[%emt 0:01:07]} g5 {[%emt 0:05:18]} 53. h5 {[%emt 0:00:11]} Ke5 {[%emt 0:01:04]} 54. h6 {[%emt 0:02:31]} g4+ {[%emt 0:01:21]} 55. Kxg4 {[%emt 0:00:06]} Ng5 {[%emt 0:00:03]} 56. Bf8 {[%emt 0:00:20]} Nh7 {[%emt 0:01:21]} 57. Ba3 {[%emt 0:00:09]} Ke4 {[%emt 0:05:38]} 58. Bb2 {[%emt 0:00:13]} Kd5 {[%emt 0:01:14]} 59. Kh5 {[%emt 0:00:09]} Nf8 {[%emt 0:01:21]} 60. Bxf6 {[%emt 0:00:21]} Ke4 {[%emt 0:00:06]} 61. Be7 {[%emt 0:49:17]} Kd5 {[%emt 0:02:48]} 1-0

[Event "IND-ch Women 2019"]
[Site "Karaikkudi"]
[Date "2019.07.19"]
[Round "1.20"]
[White "Jain Nityata"]
[Black "Mishra Riya"]
[Result "1-0"]
[ECO "C45"]
[WhiteElo "2135"]
[BlackElo "1430"]
[Annotator "ChessBase"]
[PlyCount "77"]
[EventDate "2019.07.19"]
[EventType "swiss"]
[EventCountry "IND"]
[SourceTitle "playchess.com"]
[Source "ChessBase"]
[SourceQuality "1"]
[TimeControl "40/5400+30:1800+30"]

1. e4 {[%emt 0:00:00]} e5 {[%emt 0:00:00]} 2. Nf3 {[%emt 0:00:00]} Nc6 {[%emt 0:00:00]} 3. d4 {[%emt 0:00:00]} exd4 {[%emt 0:00:00]} 4. Nxd4 {[%emt 0:00:00]} Bc5 {[%emt 0:00:00]} 5. Be3 {[%emt 0:00:00]} Qf6 {[%emt 0:00:00]} 6. c3 {[%emt 0:00:04]} Nge7 {[%emt 0:00:06]} 7. Bc4 {[%emt 0:00:05]} Ne5 {[%emt 0:00:04]} 8. Be2 {[%emt 0:00:04]} d6 {[%emt 0:00:07]} 9. O-O {[%emt 0:00:19]} Qg6 {[%emt 0:00:08]} 10. f4 {[%emt 0:00:31]} Qxe4 {[%emt 0:01:54]} 11. Bf2 {[%emt 0:00:05]} Bxd4 {[%emt 0:11:26]} 12. cxd4 {[%emt 0:00:06]} N5c6 {[%emt 0:09:59]} 13. g3 {[%emt 0:05:04]} Bh3 {[%emt 0:03:56]} 14. Bf3 {[%emt 0:00:15]} Qf5 {[%emt 0:06:35]} 15. Re1 {[%emt 0:02:16]} d5 {[%emt 0:06:13]} 16. b4 {[%emt 0:09:30]} a6 {[%emt 0:02:10]} 17. Nc3 {[%emt 0:05:20]} O-O {[%emt 0:04:59]} 18. a4 {[%emt 0:01:28]} Qd7 {[%emt 0:04:06]} 19. Qb3 {[%emt 0:07:52]} Be6 {[%emt 0:02:51]} 20. a5 {[%emt 0:08:38]} b5 {[%emt 0:08:13]} 21. axb6 {[%emt 0:07:58]} cxb6 {[%emt 0:00:08]} 22. Na4 {[%emt 0:02:04]} Rab8 {[%emt 0:02:14]} 23. Rab1 {[%emt 0:08:21]} Bf5 {[%emt 0:05:21]} 24. Rb2 {[%emt 0:01:13]} Rfe8 {[%emt 0:03:10]} 25. Qd1 {[%emt 0:03:37]} Qd6 {[%emt 0:03:12]} 26. g4 {[%emt 0:03:36]} Bd7 {[%emt 0:00:14]} 27. f5 {[%emt 0:01:06]} Qf6 {[%emt 0:02:36]} 28. Kg2 {[%emt 0:04:10]} h5 {[%emt 0:01:47]} 29. h3 {[%emt 0:00:53]} Rb7 {[%emt 0:04:19]} 30. Nc3 {[%emt 0:01:02]} g6 {[%emt 0:03:16]} 31. Rbe2 {[%emt 0:16:39]} Nxb4 {[%emt 0:03:36]} 32. fxg6 {[%emt 0:06:49]} hxg4 {[%emt 0:02:31]} 33. hxg4 {[%emt 0:01:08]} Bc6 {[%emt 0:01:18]} 34. gxf7+ {[%emt 0:01:09]} Kxf7 {[%emt 0:01:09]} 35. Qb1 {[%emt 0:01:32]} a5 {[%emt 0:01:10]} 36. Re6 {[%emt 0:00:12]} Qg7 {[%emt 0:00:44]} 37. Bh4 {[%emt 0:02:24]} Qxd4 {[%emt 0:03:14]} 38. Qh7+ {[%emt 0:01:25]} Qg7 {[%emt 0:00:03]} 39. Rf6# {[%emt 0:02:35]} 1-0

[Event "IND-ch Women 2019"]
[Site "Karaikkudi"]
[Date "2019.07.19"]
[Round "1.21"]
[White "Bharathakoti Sneha"]
[Black "Thipsay, Bagyashree Sathe"]
[Result "0-1"]
[ECO "B01"]
[WhiteElo "1422"]
[BlackElo "2093"]
[Annotator "NA"]
[PlyCount "110"]
[EventDate "2019.07.19"]
[EventType "swiss"]
[EventCountry "IND"]
[SourceTitle "playchess.com"]
[Source "ChessBase"]
[SourceQuality "1"]
[TimeControl "40/5400+30:1800+30"]

1. e4 {[%emt 0:00:00]} d5 {[%emt 0:00:00]} 2. exd5 {[%emt 0:00:12]} Qxd5 {[%emt 0:00:00]} 3. Nc3 {[%emt 0:00:10]} Qd6 {[%emt 0:00:00]} 4. d4 {[%emt 0:02:03]} Nf6 {[%emt 0:00:13]} 5. Nf3 {[%emt 0:01:12]} c6 {[%emt 0:00:14]} 6. a4 {[%emt 0:04:37] B01: Scandinavian Defence} (6. g3 Bf5 7. Bg2 h6 8. O-O e6 9. Na4 Nbd7 10. Bf4 Qe7 11. c4 g5 12. Be3 Bg7 13. Qb3 Rb8 {1-0 (88) Grandelius,N (2655)-Andreikin,D (2723) Porto Carras 2018}) 6... Bg4 {[%emt 0:02:35]} 7. Be2 {[%emt 0:01:37]} Nbd7 {[%emt 0:00:31]} 8. Be3 $146 {[%emt 0:01:55]} ({Predecessor:} 8. O-O e6 9. b3 Qc7 10. Nh4 Bxe2 11. Qxe2 Be7 12. g3 O-O 13. f4 a6 {0-1 (33) Slim,N (1807)-Nassar,M (2017) Beirut 2017}) 8... e6 {[%emt 0:00:53]} 9. a5 {[%emt 0:01:41]} Qc7 {[%emt 0:00:49]} 10. h3 {[%emt 0:05:41]} Bh5 {[%emt 0:02:13]} 11. O-O {[%emt 0:02:51]} Bd6 {[%emt 0:00:37]} 12. Qd2 {[%emt 0:01:25]} O-O {[%emt 0:00:35]} 13. Rfe1 {[%emt 0:03:36]} a6 {[%emt 0:03:24]} 14. Ra4 {[%emt 0:02:52]} Rad8 {[%emt 0:08:57]} 15. Qc1 {[%emt 0:15:46]} Rc8 {[%emt 0:03:25]} 16. Rd1 {[%emt 0:09:55]} Nd5 {[%emt 0:03:56]} 17. Nxd5 {[%emt 0:03:52]} cxd5 {[%emt 0:03:45]} 18. c3 {[%emt 0:00:41]} Nb8 {[%emt 0:03:50]} 19. Qd2 {[%emt 0:02:37]} Nc6 {[%emt 0:00:49]} 20. Rda1 {[%emt 0:02:11]} Rfd8 {[%emt 0:05:40]} 21. Qc1 {[%emt 0:08:05]} Qb8 {[%emt 0:03:45]} 22. Qd2 {[%emt 0:02:33]} Ne7 {[%emt 0:03:05]} 23. b4 {[%emt 0:03:55]} Rd7 {[%emt 0:03:31]} 24. b5 {[%emt 0:00:23]} Bxf3 $1 {[%emt 0:02:00]} 25. gxf3 {[%emt 0:00:36]} axb5 {[%emt 0:01:43]} 26. Bxb5 {[%emt 0:00:09]} Rdc7 {[%emt 0:00:05]} 27. a6 {[%emt 0:01:22]} bxa6 {[%emt 0:02:00]} 28. Bxa6 {[%emt 0:00:07]} Rd8 {[%emt 0:00:28]} 29. Bd3 {[%emt 0:00:07]} Qc8 {[%emt 0:00:51]} 30. Kg2 {[%emt 0:02:12]} Qb7 {[%emt 0:05:39]} 31. Rb1 {[%emt 0:00:28]} Qc6 {[%emt 0:01:59]} 32. Ra6 {[%emt 0:01:09]} Qxc3 {[%emt 0:11:17]} 33. Qe2 {[%emt 0:03:29]} (33. Qd1 $5 {[%cal Rb1b3]} Rcc8 34. Rc1 $11) 33... Ng6 {[%emt 0:12:34]} 34. Bxg6 $1 {[%emt 0:02:01]} hxg6 {[%emt 0:00:06]} 35. Rc1 {[%emt 0:05:15]} (35. Qb5 $1 $11 Be7 36. Rc1 Qxc1 37. Bxc1 Rxc1 38. Qb7) 35... Qb4 {[%emt 0:01:00]} 36. Bd2 {[%emt 0:00:25]} Qb7 {[%emt 0:01:12]} 37. Rca1 {[%emt 0:00:23]} Qb2 {[%emt 0:01:44]} 38. Qd3 {[%emt 0:01:01]} Rc4 {[%emt 0:04:41]} (38... Rc2 $19 39. Be3 Be7) 39. Be3 {[%emt 0:01:02]} Be7 {[%emt 0:06:39]} 40. R6a2 {[%emt 0:00:00]} Qc3 {[%emt 0:00:00]} 41. Qb1 {[%emt 0:02:02]} Bf6 {[%emt 0:01:21]} 42. Qb6 {[%emt 0:00:13]} Qb4 {[%emt 0:03:00]} 43. Qa6 {[%emt 0:00:56]} Bxd4 {[%emt 0:01:44]} 44. Ra4 {[%emt 0:00:12]} Qc5 {[%emt 0:00:06]} 45. Bxd4 {[%emt 0:00:32]} Qxd4 {[%emt 0:00:26]} 46. R4a2 {[%emt 0:00:27]} Rdc8 {[%emt 0:00:34]} 47. Rf1 {[%emt 0:01:11]} Qf4 {[%emt 0:01:40]} 48. Rd1 {[%emt 0:01:22]} Rc3 {[%emt 0:02:48]} 49. Qe2 {[%emt 0:00:04]} Qf5 $19 {[%emt 0:01:27]} 50. Rdd2 {[%emt 0:00:40]} R8c4 {[%emt 0:00:21]} 51. Ra8+ {[%emt 0:01:35]} Kh7 {[%emt 0:00:02]} 52. Ra1 {[%emt 0:00:09]} Rh4 {[%emt 0:01:12]} 53. Rh1 {[%emt 0:00:05]} Rf4 {[%emt 0:00:05]} 54. h4 {[%emt 0:00:22]} Rcxf3 {[%emt 0:00:32]} 55. h5 {[%emt 0:00:20]} gxh5 {[%emt 0:00:19]} 0-1

[Event "IND-ch Women 2019"]
[Site "Karaikkudi"]
[Date "2019.07.20"]
[Round "2.1"]
[White "Soumya, Swaminathan"]
[Black "Sandhya, N.."]
[Result "1-0"]
[ECO "B22"]
[WhiteElo "2402"]
[BlackElo "2086"]
[Annotator "RC"]
[PlyCount "63"]
[EventDate "2019.07.19"]
[EventType "swiss"]
[EventCountry "IND"]
[SourceTitle "playchess.com"]
[Source "ChessBase"]
[SourceQuality "1"]
[TimeControl "40/5400+30:1800+30"]

1. e4 {[%emt 0:00:00]} c5 {[%emt 0:00:00]} 2. c3 {[%emt 0:00:09]} Nf6 {[%emt 0:00:00]} 3. e5 {[%emt 0:00:05]} Nd5 {[%emt 0:00:00]} 4. Nf3 {[%emt 0:00:12]} Nc6 {[%emt 0:01:05]} 5. d4 {[%emt 0:00:23]} cxd4 {[%emt 0:02:46]} 6. cxd4 {[%emt 0:00:05]} d6 {[%emt 0:00:53]} 7. Bc4 {[%emt 0:11:30]} e6 {[%emt 0:01:18]} 8. O-O {[%emt 0:00:42]} Be7 {[%emt 0:07:44]} 9. Qe2 {[%emt 0:05:00]} O-O {[%emt 0:11:27]} 10. Bd2 {[%emt 0:01:18]} Nb6 {[%emt 0:17:08]} 11. Bd3 {[%emt 0:07:33]} f5 {[%emt 0:07:36]} 12. exf6 {[%emt 0:04:06]} Bxf6 {[%emt 0:01:13]} 13. Na3 {[%emt 0:10:00]} d5 {[%emt 0:10:15]} 14. Nc2 {[%emt 0:00:20]} Bd7 {[%emt 0:01:22]} 15. b4 {[%emt 0:04:25]} a6 {[%emt 0:03:37]} 16. a4 {[%emt 0:05:33]} Re8 {[%emt 0:01:48]} 17. b5 {[%emt 0:00:53]} axb5 {[%emt 0:00:29]} 18. axb5 {[%emt 0:00:02]} Rxa1 {[%emt 0:00:08]} 19. Rxa1 {[%emt 0:00:07]} Nxd4 {[%emt 0:11:42]} 20. Nfxd4 {[%emt 0:02:16]} e5 {[%emt 0:00:07]} 21. Qh5 {[%emt 0:03:56]} g6 {[%emt 0:01:17]} 22. Bxg6 {[%emt 0:05:17]} hxg6 {[%emt 0:00:09]} 23. Qxg6+ {[%emt 0:00:09]} Bg7 {[%emt 0:00:19]} 24. Bg5 {[%emt 0:02:50]} Re7 {[%emt 0:04:11]} 25. Bxe7 {[%emt 0:08:39]} Qxe7 {[%emt 0:00:06]} 26. Qxb6 {[%emt 0:00:22]} exd4 {[%emt 0:00:11]} 27. Nxd4 {[%emt 0:00:47]} Kh7 {[%emt 0:03:49]} 28. Rd1 {[%emt 0:03:32]} Bg4 {[%emt 0:01:43]} 29. f3 {[%emt 0:00:07]} Bh5 {[%emt 0:00:10]} 30. Nf5 {[%emt 0:02:42]} Qe2 {[%emt 0:00:54]} 31. Rf1 {[%emt 0:01:16]} Be5 {[%emt 0:00:46]} 32. Qh6+ {[%emt 0:00:15]} 1-0

[Event "IND-ch Women 2019"]
[Site "Karaikkudi"]
[Date "2019.07.20"]
[Round "2.2"]
[White "Potluri Saye Srreezza"]
[Black "Kulkarni Bhakti"]
[Result "0-1"]
[ECO "C01"]
[WhiteElo "1999"]
[BlackElo "2388"]
[Annotator "RC"]
[PlyCount "86"]
[EventDate "2019.07.19"]
[EventType "swiss"]
[EventCountry "IND"]
[SourceTitle "playchess.com"]
[Source "ChessBase"]
[SourceQuality "1"]
[TimeControl "40/5400+30:1800+30"]

1. d4 {[%emt 0:00:00]} d5 {[%emt 0:00:24]} 2. c4 {[%emt 0:00:00]} c6 {[%emt 0:00:30]} 3. Nc3 {[%emt 0:00:00]} e5 {[%emt 0:00:10]} 4. e3 {[%emt 0:06:16]} exd4 {[%emt 0:01:14]} 5. exd4 {[%emt 0:00:10]} Nf6 {[%emt 0:01:21]} 6. Nf3 {[%emt 0:00:48]} Bb4 {[%emt 0:05:56]} 7. Be2 {[%emt 0:08:16]} O-O {[%emt 0:01:29]} 8. O-O {[%emt 0:00:24]} dxc4 {[%emt 0:11:56]} 9. Bxc4 {[%emt 0:01:09]} Bg4 {[%emt 0:01:45]} 10. Be2 {[%emt 0:01:30]} Qd6 {[%emt 0:02:10]} 11. Ne5 {[%emt 0:08:25]} Bxe2 {[%emt 0:04:46]} 12. Nxe2 {[%emt 0:00:10]} Nd5 {[%emt 0:01:38]} 13. Qb3 {[%emt 0:03:59]} Nd7 {[%emt 0:02:02]} 14. a3 {[%emt 0:00:47]} Nxe5 {[%emt 0:00:32]} 15. axb4 {[%emt 0:00:38]} Ng4 {[%emt 0:01:10]} 16. Qh3 {[%emt 0:02:31]} Ngf6 {[%emt 0:00:27]} 17. b5 {[%emt 0:04:38]} cxb5 {[%emt 0:01:08]} 18. Ng3 {[%emt 0:03:57]} Qd7 {[%emt 0:06:07]} 19. Qh4 {[%emt 0:08:54]} Qg4 {[%emt 0:03:15]} 20. Bg5 {[%emt 0:03:05]} Qxh4 {[%emt 0:03:51]} 21. Bxh4 {[%emt 0:00:09]} Rfc8 {[%emt 0:00:30]} 22. Bxf6 {[%emt 0:00:28]} Nxf6 {[%emt 0:00:07]} 23. Nf5 {[%emt 0:05:23]} Rc2 {[%emt 0:00:41]} 24. Rab1 {[%emt 0:00:12]} Rd8 {[%emt 0:01:46]} 25. Rfd1 {[%emt 0:02:20]} g6 {[%emt 0:01:16]} 26. Ne3 {[%emt 0:00:17]} Rc7 {[%emt 0:00:57]} 27. Rd3 {[%emt 0:05:04]} a5 {[%emt 0:01:00]} 28. Kf1 {[%emt 0:02:45]} b4 {[%emt 0:03:19]} 29. g3 {[%emt 0:09:07]} Nd5 {[%emt 0:08:12]} 30. Ke2 {[%emt 0:04:07]} a4 {[%emt 0:01:40]} 31. Ra1 {[%emt 0:01:52]} b5 {[%emt 0:00:20]} 32. Rd2 {[%emt 0:01:55]} b3 {[%emt 0:01:35]} 33. Nxd5 {[%emt 0:01:23]} Rxd5 {[%emt 0:00:03]} 34. Kd3 {[%emt 0:03:14]} f5 {[%emt 0:00:20]} 35. Ke3 {[%emt 0:00:59]} Kf7 {[%emt 0:01:03]} 36. Kd3 {[%emt 0:01:39]} Rc4 {[%emt 0:01:54]} 37. Ke3 {[%emt 0:00:02]} Ke6 {[%emt 0:00:30]} 38. h4 {[%emt 0:00:50]} Kd7 {[%emt 0:06:18]} 39. f3 {[%emt 0:03:55]} h5 {[%emt 0:01:14]} 40. g4 {[%emt 0:00:00]} hxg4 {[%emt 0:00:00]} 41. fxg4 {[%emt 0:02:26]} fxg4 {[%emt 0:02:23]} 42. Ke4 {[%emt 0:12:13]} Rd6 {[%emt 0:03:33]} 43. Ke5 {[%emt 0:01:11]} Rc2 {[%emt 0:01:48]} 0-1